[Event "Titled Tuesday Blitz November 07 Late 2023"]
[White "Kravtsiv, Martyn"]
[Black "Sivakumar, Shaaketh"]
[WhiteFideId "14113147"]
[BlackFideId "30940176"]
[WhiteElo "2857"]
[BlackElo "2614"]
[Result "0-1"]
[Round "3"]
[TimeControl "180+1"]
[Date "2023.11.07"]
[WhiteClock "0:00:02"]
[BlackClock "0:00:11"]
[Board "31"]

1. e4 {[%clk 0:03:00]}  e6 {[%clk 0:02:59]} 2. d4 {[%clk 0:03:00]}  d5 {[%clk 0:02:58]} 3. e5 {[%clk 0:03:00]}  c5 {[%clk 0:02:59]} 4. c3 {[%clk 0:03:01]}  Nc6 {[%clk 0:03:00]} 5. Nf3 {[%clk 0:03:00]}  Qb6 {[%clk 0:02:53]} 6. Be2 {[%clk 0:03:00]}  Bd7 {[%clk 0:02:51]} 7. O-O {[%clk 0:02:57]}  cxd4 {[%clk 0:02:51]} 8. cxd4 {[%clk 0:02:57]}  Nge7 {[%clk 0:02:52]} 9. Na3 {[%clk 0:02:56]}  Nf5 {[%clk 0:02:52]} 10. Nc2 {[%clk 0:02:56]}  Be7 {[%clk 0:02:51]} 11. Kh1 {[%clk 0:02:36]}  Rc8 {[%clk 0:02:49]} 12. g4 {[%clk 0:02:29]}  Nh4 {[%clk 0:02:49]} 13. Nxh4 {[%clk 0:02:27]}  Bxh4 {[%clk 0:02:50]} 14. g5 {[%clk 0:02:18]}  Ne7 {[%clk 0:02:40]} 15. Bd3 {[%clk 0:02:18]}  Bb5 {[%clk 0:02:26]} 16. a4 {[%clk 0:01:55]}  Bxd3 {[%clk 0:02:21]} 17. Qxd3 {[%clk 0:01:55]}  Nf5 {[%clk 0:02:18]} 18. Ne3 {[%clk 0:01:29]}  Qxd4 {[%clk 0:02:06]} 19. Qb5+ {[%clk 0:01:29]}  Kd8 {[%clk 0:01:55]} 20. Nxf5 {[%clk 0:01:05]}  exf5 {[%clk 0:01:26]} 21. Be3 {[%clk 0:00:13]}  Qe4+ {[%clk 0:01:23]} 22. f3 {[%clk 0:00:13]}  Qxe3 {[%clk 0:01:22]} 23. Qxd5+ {[%clk 0:00:14]}  Ke8 {[%clk 0:01:18]} 24. Rad1 {[%clk 0:00:14]}  Qc5 {[%clk 0:00:57]} 25. Qd7+ {[%clk 0:00:12]}  Kf8 {[%clk 0:00:56]} 26. e6 {[%clk 0:00:10]}  fxe6 {[%clk 0:00:52]} 27. Qxe6 {[%clk 0:00:09]}  Re8 {[%clk 0:00:40]} 28. Qb3 {[%clk 0:00:06]}  Bxg5 {[%clk 0:00:37]} 29. Rd7 {[%clk 0:00:06]}  Be7 {[%clk 0:00:35]} 30. Rfd1 {[%clk 0:00:05]}  h5 {[%clk 0:00:27]} 31. R1d5 {[%clk 0:00:05]}  Qc1+ {[%clk 0:00:27]} 32. Rd1 {[%clk 0:00:05]}  Qc6 {[%clk 0:00:23]} 33. R1d6 {[%clk 0:00:04]}  Qc1+ {[%clk 0:00:18]} 34. Rd1 {[%clk 0:00:04]}  Qf4 {[%clk 0:00:17]} 35. R1d4 {[%clk 0:00:03]}  Qe5 {[%clk 0:00:16]} 36. R4d5 {[%clk 0:00:03]}  Qe1+ {[%clk 0:00:15]} 37. Kg2 {[%clk 0:00:03]}  Rh6 {[%clk 0:00:16]} 38. Rxf5+ {[%clk 0:00:03]}  Rf6 {[%clk 0:00:15]} 39. Rxf6+ {[%clk 0:00:02]}  gxf6 {[%clk 0:00:16]} 40. Qd5 {[%clk 0:00:02]}  Qe2+ {[%clk 0:00:15]} 41. Kg3 {[%clk 0:00:02]}  Qe5+ {[%clk 0:00:14]} 42. Qxe5 {[%clk 0:00:02]}  fxe5 {[%clk 0:00:15]} 43. Rxb7 {[%clk 0:00:03]}  Bc5 {[%clk 0:00:15]} 44. a5 {[%clk 0:00:01]}  Re7 {[%clk 0:00:15]} 45. Rb8+ {[%clk 0:00:01]}  Kf7 {[%clk 0:00:15]} 46. b4 {[%clk 0:00:01]}  Bd4 {[%clk 0:00:14]} 47. b5 {[%clk 0:00:02]}  Rd7 {[%clk 0:00:14]} 48. Kh4 {[%clk 0:00:02]}  Rd5 {[%clk 0:00:14]} 49. Kxh5 {[%clk 0:00:02]}  e4+ {[%clk 0:00:13]} 50. Kg4 {[%clk 0:00:02]}  e3 {[%clk 0:00:14]} 51. Rb7+ {[%clk 0:00:03]}  Kf6 {[%clk 0:00:13]} 52. b6 {[%clk 0:00:03]}  e2 {[%clk 0:00:13]} 53. bxa7 {[%clk 0:00:03]}  e1=Q {[%clk 0:00:11]} 54. a8=Q {[%clk 0:00:02]}  Qg1+ {[%clk 0:00:10]} 55. Kh4 {[%clk 0:00:02]}  Rh5+ {[%clk 0:00:10]} 56. Kxh5 {[%clk 0:00:02]}  Qg5# {[%clk 0:00:11]} 0-1


[Site "https://www.chess.com"]

[Event "Titled Tuesday Blitz November 07 Late 2023"]
[White "Cremisi, Daniel"]
[Black "Vasquez Schroeder, Rodrigo"]
[WhiteFideId "2089882"]
[BlackFideId "3400042"]
[WhiteElo "2603"]
[BlackElo "2848"]
[Result "1-0"]
[Round "3"]
[TimeControl "180+1"]
[Date "2023.11.07"]
[WhiteClock "0:00:40"]
[BlackClock "0:00:43"]
[Board "32"]

1. d4 {[%clk 0:03:00]}  Nf6 {[%clk 0:02:59]} 2. c4 {[%clk 0:03:00]}  e6 {[%clk 0:02:58]} 3. Nf3 {[%clk 0:03:01]}  c5 {[%clk 0:02:57]} 4. Nc3 {[%clk 0:03:00]}  cxd4 {[%clk 0:02:57]} 5. Nxd4 {[%clk 0:03:00]}  a6 {[%clk 0:02:58]} 6. e4 {[%clk 0:03:00]}  Qc7 {[%clk 0:02:58]} 7. Be2 {[%clk 0:03:00]}  Bb4 {[%clk 0:02:57]} 8. f3 {[%clk 0:02:57]}  Nc6 {[%clk 0:02:56]} 9. Be3 {[%clk 0:02:53]}  d5 {[%clk 0:02:56]} 10. Nxc6 {[%clk 0:02:43]}  bxc6 {[%clk 0:02:56]} 11. exd5 {[%clk 0:02:42]}  exd5 {[%clk 0:02:55]} 12. cxd5 {[%clk 0:02:41]}  Nxd5 {[%clk 0:02:54]} 13. Bd2 {[%clk 0:02:36]}  Bc5 {[%clk 0:02:37]} 14. Nxd5 {[%clk 0:02:31]}  cxd5 {[%clk 0:02:37]} 15. Rc1 {[%clk 0:02:31]}  Qb6 {[%clk 0:02:37]} 16. Qb3 {[%clk 0:02:18]}  Bf2+ {[%clk 0:02:33]} 17. Kf1 {[%clk 0:02:17]}  Be6 {[%clk 0:02:19]} 18. Qxb6 {[%clk 0:02:16]}  Bxb6 {[%clk 0:02:19]} 19. Rc6 {[%clk 0:02:10]}  Bd4 {[%clk 0:02:19]} 20. Rxa6 {[%clk 0:02:07]}  Rxa6 {[%clk 0:02:17]} 21. Bxa6 {[%clk 0:02:07]}  Bxb2 {[%clk 0:02:18]} 22. Bb5+ {[%clk 0:02:07]}  Ke7 {[%clk 0:02:17]} 23. Bb4+ {[%clk 0:02:06]}  Kf6 {[%clk 0:02:17]} 24. Ke2 {[%clk 0:02:06]}  Rc8 {[%clk 0:02:10]} 25. Rd1 {[%clk 0:01:50]}  d4 {[%clk 0:02:06]} 26. a4 {[%clk 0:01:50]}  Bc4+ {[%clk 0:01:58]} 27. Bxc4 {[%clk 0:01:50]}  Rxc4 {[%clk 0:01:58]} 28. Bd2 {[%clk 0:01:21]}  Rxa4 {[%clk 0:01:57]} 29. Rb1 {[%clk 0:01:21]}  Ra2 {[%clk 0:01:53]} 30. Kd3 {[%clk 0:01:20]}  Ke6 {[%clk 0:01:50]} 31. Re1+ {[%clk 0:01:18]}  Kd7 {[%clk 0:01:48]} 32. Re2 {[%clk 0:01:12]}  Ra3+ {[%clk 0:01:41]} 33. Kc4 {[%clk 0:01:02]}  Bc3 {[%clk 0:01:34]} 34. Bxc3 {[%clk 0:00:58]}  dxc3 {[%clk 0:01:32]} 35. Kb4 {[%clk 0:00:57]}  Ra1 {[%clk 0:01:32]} 36. Kxc3 {[%clk 0:00:57]}  Rd1 {[%clk 0:01:33]} 37. Rd2+ {[%clk 0:00:56]}  Rxd2 {[%clk 0:01:33]} 38. Kxd2 {[%clk 0:00:57]}  Kd6 {[%clk 0:01:34]} 39. Ke3 {[%clk 0:00:57]}  Ke5 {[%clk 0:01:33]} 40. Kd3 {[%clk 0:00:53]}  Kd5 {[%clk 0:01:32]} 41. Ke3 {[%clk 0:00:52]}  g5 {[%clk 0:01:32]} 42. Kd3 {[%clk 0:00:49]}  f5 {[%clk 0:01:30]} 43. Ke3 {[%clk 0:00:49]}  Ke5 {[%clk 0:01:22]} 44. f4+ {[%clk 0:00:42]}  gxf4+ {[%clk 0:01:15]} 45. Kf3 {[%clk 0:00:42]}  h6 {[%clk 0:01:13]} 46. h3 {[%clk 0:00:42]}  h5 {[%clk 0:01:08]} 47. h4 {[%clk 0:00:41]}  Ke6 {[%clk 0:01:09]} 48. Kxf4 {[%clk 0:00:41]}  Kf6 {[%clk 0:01:05]} 49. g3 {[%clk 0:00:41]}  Kg6 {[%clk 0:01:03]} 50. Ke5 {[%clk 0:00:41]}  Kh7 {[%clk 0:00:45]} 51. Kxf5 {[%clk 0:00:40]}  Kh6 {[%clk 0:00:43]} 52. Kf6 {[%clk 0:00:40]} 1-0


[Site "https://www.chess.com"]

[Event "Titled Tuesday Blitz November 07 Late 2023"]
[White "Kozak, Antoni"]
[Black "Goncalves, Davi Sulzbacher"]
[WhiteFideId "21832030"]
[BlackFideId "2154510"]
[WhiteElo "2805"]
[BlackElo "2425"]
[Result "1-0"]
[Round "3"]
[TimeControl "180+1"]
[Date "2023.11.07"]
[WhiteClock "0:00:14"]
[BlackClock "0:00:00"]
[Board "39"]

1. Nf3 {[%clk 0:03:00]}  Nf6 {[%clk 0:02:58]} 2. c4 {[%clk 0:03:00]}  g6 {[%clk 0:02:57]} 3. Nc3 {[%clk 0:03:00]}  d5 {[%clk 0:02:58]} 4. cxd5 {[%clk 0:03:00]}  Nxd5 {[%clk 0:02:59]} 5. Qa4+ {[%clk 0:02:59]}  Nc6 {[%clk 0:02:58]} 6. Ne5 {[%clk 0:02:57]}  Nb6 {[%clk 0:02:54]} 7. Qb5 {[%clk 0:02:20]}  Qd6 {[%clk 0:02:25]} 8. Nxc6 {[%clk 0:02:06]}  bxc6 {[%clk 0:02:26]} 9. Qg5 {[%clk 0:01:57]}  Bg7 {[%clk 0:02:20]} 10. g3 {[%clk 0:01:56]}  O-O {[%clk 0:02:19]} 11. Bg2 {[%clk 0:01:56]}  Rb8 {[%clk 0:02:08]} 12. O-O {[%clk 0:01:55]}  Be6 {[%clk 0:01:57]} 13. d3 {[%clk 0:01:49]}  Nd5 {[%clk 0:01:56]} 14. Ne4 {[%clk 0:01:45]}  Qb4 {[%clk 0:01:35]} 15. Rb1 {[%clk 0:01:30]}  f5 {[%clk 0:01:14]} 16. Bd2 {[%clk 0:01:19]}  Qb6 {[%clk 0:00:57]} 17. Nc3 {[%clk 0:01:18]}  Bf6 {[%clk 0:00:52]} 18. Nxd5 {[%clk 0:01:06]}  Bxd5 {[%clk 0:00:26]} 19. Qe3 {[%clk 0:01:03]}  Bxa2 {[%clk 0:00:20]} 20. Rbc1 {[%clk 0:00:55]}  Qxb2 {[%clk 0:00:17]} 21. Ba5 {[%clk 0:00:42]}  Bd5 {[%clk 0:00:13]} 22. Bxd5+ {[%clk 0:00:32]}  cxd5 {[%clk 0:00:14]} 23. Bxc7 {[%clk 0:00:29]}  Rbc8 {[%clk 0:00:14]} 24. Rb1 {[%clk 0:00:17]}  Qd4 {[%clk 0:00:12]} 25. Qe6+ {[%clk 0:00:17]}  Kg7 {[%clk 0:00:11]} 26. Rb7 {[%clk 0:00:17]}  Qc5 {[%clk 0:00:01]} 27. Be5 {[%clk 0:00:14]}  Rfe8 {[%clk 0:00:00]} 28. Bxf6+ {[%clk 0:00:14]} 1-0


[Site "https://www.chess.com"]

[Event "Titled Tuesday Blitz November 07 Late 2023"]
[White "Rohan, Ahuja"]
[Black "Kazakov, Mikhail"]
[WhiteFideId "5090598"]
[BlackFideId "14102749"]
[WhiteElo "2743"]
[BlackElo "2404"]
[Result "0-1"]
[Round "3"]
[TimeControl "180+1"]
[Date "2023.11.07"]
[WhiteClock "0:00:15"]
[BlackClock "0:00:11"]
[Board "43"]

1. Nf3 {[%clk 0:02:24]}  Nf6 {[%clk 0:02:57]} 2. g3 {[%clk 0:02:25]}  d5 {[%clk 0:02:56]} 3. Bg2 {[%clk 0:02:26]}  c6 {[%clk 0:02:57]} 4. c4 {[%clk 0:02:26]}  e6 {[%clk 0:02:57]} 5. b3 {[%clk 0:02:21]}  Be7 {[%clk 0:02:57]} 6. Bb2 {[%clk 0:02:21]}  O-O {[%clk 0:02:58]} 7. O-O {[%clk 0:02:21]}  b6 {[%clk 0:02:57]} 8. d4 {[%clk 0:02:22]}  Bb7 {[%clk 0:02:57]} 9. Nc3 {[%clk 0:02:16]}  Nbd7 {[%clk 0:02:57]} 10. Qd3 {[%clk 0:02:16]}  c5 {[%clk 0:02:55]} 11. cxd5 {[%clk 0:02:13]}  Nxd5 {[%clk 0:02:51]} 12. Nxd5 {[%clk 0:02:11]}  Bxd5 {[%clk 0:02:48]} 13. e4 {[%clk 0:02:09]}  Bb7 {[%clk 0:02:47]} 14. Qe3 {[%clk 0:01:15]}  cxd4 {[%clk 0:02:24]} 15. Nxd4 {[%clk 0:01:16]}  Bc5 {[%clk 0:02:11]} 16. Rfd1 {[%clk 0:01:14]}  Qe7 {[%clk 0:02:10]} 17. Qe2 {[%clk 0:01:08]}  Rfd8 {[%clk 0:02:03]} 18. a3 {[%clk 0:00:56]}  Bxd4 {[%clk 0:01:40]} 19. Bxd4 {[%clk 0:00:55]}  e5 {[%clk 0:01:38]} 20. Bb2 {[%clk 0:00:52]}  Nc5 {[%clk 0:01:36]} 21. b4 {[%clk 0:00:51]}  Na4 {[%clk 0:01:26]} 22. Qc2 {[%clk 0:00:43]}  Nxb2 {[%clk 0:01:20]} 23. Qxb2 {[%clk 0:00:44]}  h6 {[%clk 0:01:13]} 24. Rac1 {[%clk 0:00:42]}  f6 {[%clk 0:00:58]} 25. h4 {[%clk 0:00:41]}  Rxd1+ {[%clk 0:00:56]} 26. Rxd1 {[%clk 0:00:41]}  Rd8 {[%clk 0:00:57]} 27. Rxd8+ {[%clk 0:00:38]}  Qxd8 {[%clk 0:00:58]} 28. Qb3+ {[%clk 0:00:38]}  Kf8 {[%clk 0:00:54]} 29. Qe6 {[%clk 0:00:33]}  Bc8 {[%clk 0:00:51]} 30. Qc4 {[%clk 0:00:34]}  Ke7 {[%clk 0:00:48]} 31. Bf1 {[%clk 0:00:31]}  Be6 {[%clk 0:00:46]} 32. Qc3 {[%clk 0:00:32]}  Qc8 {[%clk 0:00:38]} 33. Qd2 {[%clk 0:00:30]}  Qd7 {[%clk 0:00:38]} 34. Qc2 {[%clk 0:00:29]}  Qc8 {[%clk 0:00:38]} 35. Qa4 {[%clk 0:00:28]}  Qd7 {[%clk 0:00:37]} 36. Bb5 {[%clk 0:00:26]}  Qc7 {[%clk 0:00:37]} 37. Qd1 {[%clk 0:00:24]}  Qd8 {[%clk 0:00:33]} 38. Qc2 {[%clk 0:00:23]}  Qc8 {[%clk 0:00:33]} 39. Qd2 {[%clk 0:00:20]}  Qd8 {[%clk 0:00:32]} 40. Qe2 {[%clk 0:00:21]}  Qc7 {[%clk 0:00:27]} 41. Kh2 {[%clk 0:00:20]}  Qd8 {[%clk 0:00:22]} 42. f4 {[%clk 0:00:18]}  Qd4 {[%clk 0:00:18]} 43. f5 {[%clk 0:00:15]}  Bf7 {[%clk 0:00:17]} 44. Bd3 {[%clk 0:00:15]}  Kf8 {[%clk 0:00:14]} 45. Kg2 {[%clk 0:00:11]}  Kg8 {[%clk 0:00:14]} 46. g4 {[%clk 0:00:11]}  Bb3 {[%clk 0:00:13]} 47. Kf3 {[%clk 0:00:10]}  Ba4 {[%clk 0:00:12]} 48. Qe3 {[%clk 0:00:10]}  Qa1 {[%clk 0:00:11]} 49. Be2 {[%clk 0:00:10]}  Qh1+ {[%clk 0:00:10]} 50. Kg3 {[%clk 0:00:10]}  Qe1+ {[%clk 0:00:10]} 51. Qf2 {[%clk 0:00:10]}  Qc3+ {[%clk 0:00:10]} 52. Qf3 {[%clk 0:00:10]}  Qe1+ {[%clk 0:00:09]} 53. Kh3 {[%clk 0:00:10]}  Bc6 {[%clk 0:00:09]} 54. g5 {[%clk 0:00:09]}  hxg5 {[%clk 0:00:09]} 55. hxg5 {[%clk 0:00:10]}  fxg5 {[%clk 0:00:09]} 56. Qg4 {[%clk 0:00:08]}  Qf2 {[%clk 0:00:09]} 57. Bf3 {[%clk 0:00:07]}  Qe3 {[%clk 0:00:09]} 58. Kh2 {[%clk 0:00:07]}  Qf2+ {[%clk 0:00:08]} 59. Kh3 {[%clk 0:00:07]}  Qe3 {[%clk 0:00:08]} 60. Kh2 {[%clk 0:00:08]}  Qf4+ {[%clk 0:00:09]} 61. Kg2 {[%clk 0:00:08]}  Kf7 {[%clk 0:00:08]} 62. Kh3 {[%clk 0:00:08]}  Kf6 {[%clk 0:00:08]} 63. Qh5 {[%clk 0:00:07]}  Qh4+ {[%clk 0:00:05]} 64. Qxh4 {[%clk 0:00:08]}  gxh4 {[%clk 0:00:06]} 65. Kxh4 {[%clk 0:00:09]}  Bb5 {[%clk 0:00:05]} 66. Kg4 {[%clk 0:00:08]}  Bc6 {[%clk 0:00:06]} 67. Bg2 {[%clk 0:00:09]}  Bb7 {[%clk 0:00:06]} 68. Kh4 {[%clk 0:00:09]}  Bc6 {[%clk 0:00:06]} 69. Kg4 {[%clk 0:00:10]}  Bb7 {[%clk 0:00:07]} 70. Kh4 {[%clk 0:00:09]}  Ba6 {[%clk 0:00:07]} 71. Bf3 {[%clk 0:00:10]}  Bd3 {[%clk 0:00:07]} 72. Kg4 {[%clk 0:00:10]}  Bc2 {[%clk 0:00:07]} 73. Kh4 {[%clk 0:00:10]}  Bd3 {[%clk 0:00:07]} 74. Kg4 {[%clk 0:00:11]}  Bc2 {[%clk 0:00:08]} 75. Kh4 {[%clk 0:00:12]}  Bb1 {[%clk 0:00:08]} 76. a4 {[%clk 0:00:12]}  a5 {[%clk 0:00:07]} 77. bxa5 {[%clk 0:00:11]}  bxa5 {[%clk 0:00:08]} 78. Kg3 {[%clk 0:00:11]}  Bc2 {[%clk 0:00:08]} 79. Kf2 {[%clk 0:00:11]}  Bxa4 {[%clk 0:00:08]} 80. Ke3 {[%clk 0:00:12]}  Bc6 {[%clk 0:00:08]} 81. Kd3 {[%clk 0:00:13]}  Kg5 {[%clk 0:00:09]} 82. Kc4 {[%clk 0:00:13]}  Kf4 {[%clk 0:00:09]} 83. Be2 {[%clk 0:00:12]}  Bxe4 {[%clk 0:00:08]} 84. Kb5 {[%clk 0:00:12]}  Bxf5 {[%clk 0:00:08]} 85. Kxa5 {[%clk 0:00:13]}  g5 {[%clk 0:00:09]} 86. Kb4 {[%clk 0:00:13]}  g4 {[%clk 0:00:10]} 87. Bf1 {[%clk 0:00:14]}  g3 {[%clk 0:00:10]} 88. Bg2 {[%clk 0:00:13]}  Be4 {[%clk 0:00:10]} 89. Bh3 {[%clk 0:00:14]}  g2 {[%clk 0:00:10]} 90. Bxg2 {[%clk 0:00:15]}  Bxg2 {[%clk 0:00:10]} 91. Kc3 {[%clk 0:00:15]}  e4 {[%clk 0:00:11]} 0-1


[Site "https://www.chess.com"]

[Event "Titled Tuesday Blitz November 07 Late 2023"]
[White "Maksimovic, Bojan"]
[Black "Urbina Perez, Juan Antonio"]
[WhiteFideId "14408120"]
[BlackFideId "2217368"]
[WhiteElo "2738"]
[BlackElo "2518"]
[Result "1-0"]
[Round "3"]
[TimeControl "180+1"]
[Date "2023.11.07"]
[WhiteClock "0:00:14"]
[BlackClock "0:00:00"]
[Board "44"]

1. e4 {[%clk 0:03:00]}  e5 {[%clk 0:02:59]} 2. Nf3 {[%clk 0:03:00]}  Nf6 {[%clk 0:03:00]} 3. Nxe5 {[%clk 0:03:00]}  d6 {[%clk 0:03:01]} 4. Nf3 {[%clk 0:03:00]}  Nxe4 {[%clk 0:03:01]} 5. d4 {[%clk 0:03:00]}  d5 {[%clk 0:03:01]} 6. Bd3 {[%clk 0:03:01]}  Bd6 {[%clk 0:03:01]} 7. O-O {[%clk 0:03:00]}  O-O {[%clk 0:03:01]} 8. c4 {[%clk 0:03:00]}  c6 {[%clk 0:03:00]} 9. Nc3 {[%clk 0:03:01]}  Nxc3 {[%clk 0:02:59]} 10. bxc3 {[%clk 0:03:02]}  dxc4 {[%clk 0:02:58]} 11. Bxc4 {[%clk 0:03:03]}  Bf5 {[%clk 0:02:55]} 12. Bg5 {[%clk 0:03:02]}  Qa5 {[%clk 0:02:54]} 13. Nh4 {[%clk 0:03:02]}  Nd7 {[%clk 0:02:50]} 14. Nxf5 {[%clk 0:02:18]}  Qxf5 {[%clk 0:02:51]} 15. Be3 {[%clk 0:02:12]}  Nf6 {[%clk 0:02:41]} 16. Bd3 {[%clk 0:02:11]}  Qh5 {[%clk 0:02:27]} 17. Qxh5 {[%clk 0:02:07]}  Nxh5 {[%clk 0:02:28]} 18. Rfb1 {[%clk 0:02:05]}  Rab8 {[%clk 0:02:24]} 19. g3 {[%clk 0:01:54]}  Rfe8 {[%clk 0:02:10]} 20. a4 {[%clk 0:01:50]}  b6 {[%clk 0:02:04]} 21. a5 {[%clk 0:01:44]}  Nf6 {[%clk 0:02:04]} 22. axb6 {[%clk 0:01:43]}  axb6 {[%clk 0:02:05]} 23. Ra6 {[%clk 0:01:42]}  Nd5 {[%clk 0:01:54]} 24. Bd2 {[%clk 0:01:42]}  c5 {[%clk 0:01:17]} 25. c4 {[%clk 0:01:36]}  Nb4 {[%clk 0:01:00]} 26. Bxb4 {[%clk 0:01:36]}  cxb4 {[%clk 0:01:01]} 27. c5 {[%clk 0:01:36]}  Bc7 {[%clk 0:01:00]} 28. Ra7 {[%clk 0:01:28]}  Bd8 {[%clk 0:00:50]} 29. Rxb4 {[%clk 0:01:24]}  Bf6 {[%clk 0:00:51]} 30. cxb6 {[%clk 0:01:21]}  Red8 {[%clk 0:00:44]} 31. Raa4 {[%clk 0:01:11]}  Be7 {[%clk 0:00:22]} 32. Rb5 {[%clk 0:01:11]}  Bf6 {[%clk 0:00:13]} 33. d5 {[%clk 0:01:09]}  g6 {[%clk 0:00:13]} 34. Be4 {[%clk 0:01:05]}  Be5 {[%clk 0:00:13]} 35. b7 {[%clk 0:01:04]}  Bd6 {[%clk 0:00:12]} 36. Ra6 {[%clk 0:01:01]}  Kf8 {[%clk 0:00:12]} 37. Ra1 {[%clk 0:00:41]}  Rd7 {[%clk 0:00:12]} 38. Rab1 {[%clk 0:00:41]}  Ke7 {[%clk 0:00:12]} 39. f4 {[%clk 0:00:42]}  Rc7 {[%clk 0:00:11]} 40. Kf2 {[%clk 0:00:40]}  f5 {[%clk 0:00:09]} 41. Bd3 {[%clk 0:00:39]}  Rc5 {[%clk 0:00:09]} 42. Rxc5 {[%clk 0:00:29]}  Bxc5+ {[%clk 0:00:10]} 43. Ke2 {[%clk 0:00:29]}  Kd6 {[%clk 0:00:10]} 44. Bc4 {[%clk 0:00:29]}  Kc7 {[%clk 0:00:10]} 45. Ba6 {[%clk 0:00:24]}  Kd6 {[%clk 0:00:10]} 46. Rd1 {[%clk 0:00:22]}  Ba7 {[%clk 0:00:10]} 47. Kf1 {[%clk 0:00:18]}  Re8 {[%clk 0:00:08]} 48. Bb5 {[%clk 0:00:19]}  Re3 {[%clk 0:00:07]} 49. Bc6 {[%clk 0:00:19]}  Rc3 {[%clk 0:00:04]} 50. Ra1 {[%clk 0:00:19]}  Bb8 {[%clk 0:00:04]} 51. Re1 {[%clk 0:00:18]}  Rc2 {[%clk 0:00:02]} 52. Re2 {[%clk 0:00:17]}  Rxe2 {[%clk 0:00:01]} 53. Kxe2 {[%clk 0:00:18]}  Bc7 {[%clk 0:00:02]} 54. h4 {[%clk 0:00:16]}  h6 {[%clk 0:00:01]} 55. Kd3 {[%clk 0:00:15]}  Bb8 {[%clk 0:00:01]} 56. Kc4 {[%clk 0:00:14]}  Bc7 {[%clk 0:00:00]} 57. Be8 {[%clk 0:00:14]} 1-0


[Site "https://www.chess.com"]

[Event "Titled Tuesday Blitz November 07 Late 2023"]
[White "Barrientos, Sergio E"]
[Black "Balla, Tamas-Kristof"]
[WhiteFideId "4401824"]
[BlackFideId "1208497"]
[WhiteElo "2678"]
[BlackElo "2352"]
[Result "1/2-1/2"]
[Round "3"]
[TimeControl "180+1"]
[Date "2023.11.07"]
[WhiteClock "0:00:12"]
[BlackClock "0:00:05"]
[Board "47"]

1. d4 {[%clk 0:03:00]}  d5 {[%clk 0:02:59]} 2. c4 {[%clk 0:03:00]}  e6 {[%clk 0:03:00]} 3. Nc3 {[%clk 0:02:59]}  c5 {[%clk 0:03:00]} 4. cxd5 {[%clk 0:02:58]}  exd5 {[%clk 0:03:01]} 5. Nf3 {[%clk 0:02:58]}  Nc6 {[%clk 0:03:02]} 6. g3 {[%clk 0:02:58]}  Nf6 {[%clk 0:03:02]} 7. Bg2 {[%clk 0:02:59]}  cxd4 {[%clk 0:03:03]} 8. Nxd4 {[%clk 0:02:59]}  Bc5 {[%clk 0:03:03]} 9. Nb3 {[%clk 0:02:58]}  Bb6 {[%clk 0:03:03]} 10. O-O {[%clk 0:02:57]}  d4 {[%clk 0:03:03]} 11. Na4 {[%clk 0:02:55]}  O-O {[%clk 0:03:04]} 12. Nxb6 {[%clk 0:02:54]}  axb6 {[%clk 0:03:03]} 13. e3 {[%clk 0:02:53]}  d3 {[%clk 0:02:59]} 14. Bd2 {[%clk 0:02:48]}  Bg4 {[%clk 0:02:56]} 15. f3 {[%clk 0:02:48]}  Be6 {[%clk 0:02:56]} 16. Bc3 {[%clk 0:02:48]}  b5 {[%clk 0:02:23]} 17. Nd4 {[%clk 0:02:20]}  Nxd4 {[%clk 0:02:15]} 18. Bxd4 {[%clk 0:02:20]}  Bxa2 {[%clk 0:02:00]} 19. b3 {[%clk 0:01:59]}  Qd5 {[%clk 0:01:47]} 20. f4 {[%clk 0:01:36]}  Qxb3 {[%clk 0:01:44]} 21. Bxb7 {[%clk 0:01:36]}  Ra4 {[%clk 0:01:23]} 22. Qd2 {[%clk 0:01:34]}  Rb8 {[%clk 0:01:15]} 23. Bf3 {[%clk 0:01:30]}  Rc8 {[%clk 0:01:12]} 24. Bd1 {[%clk 0:01:22]}  Rc2 {[%clk 0:00:52]} 25. Bxc2 {[%clk 0:01:22]}  dxc2 {[%clk 0:00:53]} 26. Rac1 {[%clk 0:01:03]}  Bb1 {[%clk 0:00:48]} 27. Be5 {[%clk 0:00:52]}  h6 {[%clk 0:00:43]} 28. Rf2 {[%clk 0:00:43]}  Ne4 {[%clk 0:00:41]} 29. Qd8+ {[%clk 0:00:43]}  Kh7 {[%clk 0:00:41]} 30. Re2 {[%clk 0:00:42]}  Qc4 {[%clk 0:00:42]} 31. Ree1 {[%clk 0:00:37]}  f6 {[%clk 0:00:37]} 32. Bd4 {[%clk 0:00:35]}  Nd2 {[%clk 0:00:34]} 33. Kf2 {[%clk 0:00:29]}  Nb3 {[%clk 0:00:33]} 34. Qd7 {[%clk 0:00:26]}  Nxc1 {[%clk 0:00:26]} 35. Rxc1 {[%clk 0:00:24]}  Ra6 {[%clk 0:00:22]} 36. Qf5+ {[%clk 0:00:19]}  Kg8 {[%clk 0:00:19]} 37. Qd7 {[%clk 0:00:19]}  Re6 {[%clk 0:00:18]} 38. f5 {[%clk 0:00:17]}  Re4 {[%clk 0:00:17]} 39. Kf3 {[%clk 0:00:15]}  Rxd4 {[%clk 0:00:11]} 40. Qxd4 {[%clk 0:00:15]}  Qb3 {[%clk 0:00:07]} 41. Qe4 {[%clk 0:00:11]}  Qa3 {[%clk 0:00:07]} 42. Rxb1 {[%clk 0:00:08]}  cxb1=Q {[%clk 0:00:07]} 43. Qxb1 {[%clk 0:00:09]}  Qc5 {[%clk 0:00:06]} 44. Qe4 {[%clk 0:00:09]}  b4 {[%clk 0:00:06]} 45. Qe8+ {[%clk 0:00:09]}  Kh7 {[%clk 0:00:07]} 46. Qg6+ {[%clk 0:00:09]}  Kg8 {[%clk 0:00:07]} 47. Qe8+ {[%clk 0:00:09]}  Qf8 {[%clk 0:00:07]} 48. Qe6+ {[%clk 0:00:09]}  Kh8 {[%clk 0:00:08]} 49. h4 {[%clk 0:00:07]}  Qb8 {[%clk 0:00:07]} 50. Qb3 {[%clk 0:00:07]}  Qb7+ {[%clk 0:00:07]} 51. e4 {[%clk 0:00:08]}  Qb5 {[%clk 0:00:06]} 52. Ke3 {[%clk 0:00:08]}  Qc5+ {[%clk 0:00:06]} 53. Kd3 {[%clk 0:00:08]}  Qb5+ {[%clk 0:00:06]} 54. Kd4 {[%clk 0:00:09]}  Qb6+ {[%clk 0:00:07]} 55. Kc4 {[%clk 0:00:09]}  Qc6+ {[%clk 0:00:06]} 56. Kxb4 {[%clk 0:00:09]}  Qxe4+ {[%clk 0:00:07]} 57. Kc5 {[%clk 0:00:10]}  Qxf5+ {[%clk 0:00:07]} 58. Kd6 {[%clk 0:00:10]}  Qg4 {[%clk 0:00:05]} 59. Ke7 {[%clk 0:00:10]}  Qe4+ {[%clk 0:00:04]} 60. Kf8 {[%clk 0:00:11]}  Qa8+ {[%clk 0:00:04]} 61. Ke7 {[%clk 0:00:11]}  Qa7+ {[%clk 0:00:05]} 62. Kf8 {[%clk 0:00:11]}  Qa8+ {[%clk 0:00:05]} 63. Ke7 {[%clk 0:00:12]}  Qa7+ {[%clk 0:00:06]} 64. Kd6 {[%clk 0:00:12]}  Qa6+ {[%clk 0:00:05]} 65. Ke7 {[%clk 0:00:12]}  Qa8 {[%clk 0:00:05]} 66. h5 {[%clk 0:00:12]}  Qa7+ {[%clk 0:00:04]} 67. Ke8 {[%clk 0:00:12]}  Qa8+ {[%clk 0:00:04]} 68. Ke7 {[%clk 0:00:12]}  Qa7+ {[%clk 0:00:05]} 69. Kf8 {[%clk 0:00:12]}  Qa8+ {[%clk 0:00:05]} 70. Ke7 {[%clk 0:00:12]} 1/2-1/2


[Site "https://www.chess.com"]